bitfinex-derivatives/quotes_SOLF0:USTF0_20250331
["timestamp","ask_amount","ask_price","bid_price","bid_amount"]
[1743448416346,7.98946267,126.11,126.09,7.9311]
[1743448416742,0.05906267,126.11,126.08,29.13755342]
[1743448417743,7.9311,126.1,126.08,29.13755342]
[1743448418040,7.9311,126.1,126.08,0.05755342]
[1743448418240,7.9311,126.1,126.08,7.98955342]
[1743448418945,7.9314,126.09,126.08,0.05755342]
[1743448419742,7.934,126.05,126.03,29.08]
[1743448420344,7.9346,126.04,126.03,29.08]
[1743448420848,7.9346,126.04,126.02,14.6668]
[1743448421147,0.05882562,126.05,126.02,7.99410662]
[1743448421649,7.99322562,126.05,126.03,7.9351]
[1743448421946,0.05882562,126.05,126.03,7.9351]
[1743448423446,0.05882562,126.05,126.02,21.67801198]
[1743448423652,0.05882562,126.05,126.03,29.08]
[1743448424053,0.05882562,126.05,126.04,7.9346]
[1743448433060,0.05882562,126.05,126.02,0.05880662]
[1743448434070,7.9346,126.04,126.02,0.05880662]
[1743448434261,0.05882562,126.05,126.02,0.05880662]
[1743448434770,7.9352,126.03,126.02,0.05880662]
[1743448436467,7.9376,126.0,125.97,29.08]
[1743448437266,7.9376,126.0,125.98,7.938]
[1743448437470,0.05112177,126.0,125.98,7.938]
[1743448437967,0.05112177,126.0,125.99,7.9377]
[1743448440470,29.08,126.06,125.98,21.61920536]
[1743448441171,7.9342,126.05,125.99,3.2793]
[1743448441367,7.9342,126.05,126.0,29.08]
[1743448441568,0.05084686,126.03,126.02,7.9354]
[1743448442172,0.05084686,126.03,126.01,7.98934751]
[1743448443472,0.05084686,126.03,126.02,7.9358]
[1743448445377,30.6543,126.1,126.05,7.9337]
[1743448445563,7.933,126.07,126.05,7.9337]
[1743448446375,7.98491195,126.07,126.05,7.98505938]
[1743448447071,0.05191195,126.07,126.06,7.9333]
[1743448447673,7.98461195,126.07,126.05,7.98495938]
[1743448448367,0.05191195,126.07,126.06,7.9333]
[1743448448969,0.05191195,126.07,126.05,0.05135938]
[1743448450174,7.9333,126.06,126.05,0.05135938]
[1743448457382,7.9358,126.02,126.01,29.06]
[1743448457579,21.61920536,126.07,126.01,29.06]
[1743448458188,7.9358,126.02,126.01,29.06]
[1743448458485,7.9358,126.02,126.0,0.05503954]
[1743448458985,7.9358,126.02,126.0,7.99183954]
[1743448459685,0.05026735,126.03,126.0,0.05503954]
[1743448460282,0.05026735,126.03,126.02,7.9358]
[1743448460485,0.05026735,126.03,126.02,36.9958]
[1743448462582,0.05026735,126.03,126.0,0.05503954]
[1743448463290,21.66947271,126.03,125.94,24.83730536]
[1743448463581,21.61920536,126.03,125.96,29.06]
[1743448463979,7.9367,126.01,125.99,7.9376]
[1743448464480,7.98700736,126.01,125.99,7.99011797]
[1743448464988,7.98700736,126.01,125.99,0.05251797]
[1743448465289,7.9371,126.0,125.99,0.05251797]
[1743448465691,7.98710736,126.01,125.99,0.05251797]
[1743448466389,7.98710736,126.01,125.99,7.98991797]
[1743448467291,0.05030736,126.01,125.99,7.98991797]
[1743448467794,0.05030736,126.01,126.0,7.9371]
[1743448470992,0.05030736,126.01,125.99,7.98991797]
[1743448471587,7.98690736,126.01,125.99,0.05251797]
[1743448474593,7.9371,126.0,125.99,0.05251797]
[1743448474990,0.05030736,126.01,125.99,0.05251797]
[1743448475195,0.05030736,126.01,125.99,7.99021797]
[1743448475399,7.98710736,126.01,125.99,7.99021797]
[1743448475794,0.05030736,126.01,126.0,7.9371]
[1743448475988,0.05030736,126.01,125.99,0.05251797]
[1743448476794,0.05030736,126.01,126.0,29.06]
[1743448476997,0.05030736,126.01,126.0,36.9971]
[1743448478996,7.98680736,126.01,126.0,29.06]
[1743448479398,0.05030736,126.01,126.0,29.06]
[1743448479797,0.05030736,126.01,126.0,36.9971]
[1743448482899,7.98680736,126.01,126.0,29.06]
[1743448483899,0.05030736,126.01,126.0,29.06]
[1743448484505,0.05030736,126.01,126.0,36.9971]
[1743448486403,13.84936647,126.07,126.04,7.9345]
[1743448487003,7.9336,126.06,126.04,7.9345]
[1743448487199,13.84936647,126.07,126.05,7.9339]
[1743448487503,13.90839215,126.07,126.05,7.98452009]
[1743448487700,13.90839215,126.07,126.05,0.05062009]
[1743448489199,0.05902568,126.07,126.05,0.05062009]
[1743448489394,7.99192568,126.07,126.05,7.98442009]
[1743448489899,7.99192568,126.07,126.05,0.05062009]
[1743448490904,7.99192568,126.07,126.05,7.98452009]
[1743448490905,0.05902568,126.07,126.05,7.98452009]
[1743448491494,7.99202568,126.07,126.05,7.98452009]
[1743448491699,0.05902568,126.07,126.05,0.05062009]
[1743448492203,7.9333,126.06,126.05,0.05062009]
[1743448492599,21.78266647,126.06,126.05,0.05062009]
[1743448500409,7.9363,126.02,126.0,29.04]
[1743448501003,7.9363,126.02,125.99,35.8196]
[1743448501210,7.9363,126.02,125.99,6.7796]
[1743448501411,7.9363,126.02,126.0,7.9368]
[1743448501704,7.9927482,126.02,126.0,7.9368]
[1743448501906,0.0564482,126.02,125.99,35.87945278]
[1743448502112,0.0564482,126.02,126.0,13.84936647]
[1743448503013,0.0564482,126.02,126.01,7.9365]
[1743448510716,7.9336,126.06,126.0,13.84936647]
[1743448510914,7.9336,126.06,126.02,13.84936647]
[1743448511217,7.9336,126.06,126.04,7.9343]
[1743448511917,0.0542519,126.06,126.04,0.05422236]
[1743448512218,0.0542519,126.06,126.05,7.9338]
[1743448512421,7.9875519,126.06,126.04,0.05422236]
[1743448512919,7.9875519,126.06,126.04,7.98842236]
[1743448514523,0.0542519,126.06,126.05,7.9339]
[1743448514819,0.0542519,126.06,126.04,0.05422236]
[1743448515221,7.9875519,126.06,126.04,7.98852236]
[1743448516724,7.9339,126.05,126.04,0.05422236]
[1743448517422,7.9368,126.01,125.98,46.32956647]
[1743448517612,13.84936647,126.02,125.98,13.84936647]
[1743448517818,7.9381,125.99,125.97,7.9386]
[1743448518321,13.84936647,126.0,125.95,38.99]
[1743448518516,7.99809653,125.99,125.97,0.05581364]
[1743448518721,0.06009653,125.99,125.97,0.05581364]
[1743448518925,7.9384,125.98,125.97,0.05581364]
[1743448519425,0.06009653,125.99,125.97,0.05581364]
[1743448520323,7.9384,125.98,125.97,0.05581364]
[1743448521024,13.84936647,126.03,125.97,13.90518011]
[1743448521220,13.84936647,126.03,125.98,13.84936647]
[1743448521422,7.9359,126.02,125.99,7.9371]
[1743448521822,13.84936647,126.04,125.99,13.84936647]
[1743448522023,7.9355,126.03,126.0,7.9365]
[1743448522219,7.99218585,126.03,126.0,0.05662537]
[1743448522421,0.05668585,126.03,126.0,0.05662537]
[1743448523225,7.99198585,126.03,126.01,7.9362]
[1743448523724,0.05668585,126.03,126.02,7.9358]
[1743448523931,0.05668585,126.03,126.0,0.05662537]
[1743448524225,7.99208585,126.03,126.01,7.9362]
[1743448524424,7.99208585,126.03,126.0,0.05662537]
[1743448524927,7.99208585,126.03,126.01,7.9364]
[1743448525624,0.05668585,126.03,126.0,7.99322537]
[1743448526124,7.99218585,126.03,126.0,7.99322537]
[1743448526623,7.99218585,126.03,126.01,7.9363]
[1743448526825,0.05668585,126.03,126.01,7.9363]
[1743448527427,7.99198585,126.03,126.01,7.9363]
[1743448528129,0.05668585,126.03,126.02,7.9358]
[1743448530725,0.05668585,126.03,126.01,50.82546647]
[1743448531326,7.99218585,126.03,126.01,50.82546647]
[1743448532421,0.05668585,126.03,126.01,42.88936647]
[1743448533429,7.99218585,126.03,126.01,50.82556647]
[1743448534328,7.9358,126.02,126.01,29.04]
[1743448534538,0.05668585,126.03,126.01,29.04]
[1743448534831,7.9365,126.01,126.0,0.05662537]
[1743448535127,13.84936647,126.01,125.96,7.9393]
[1743448535328,13.84936647,126.01,125.96,13.84936647]
[1743448535520,7.938,125.99,125.97,7.9387]
[1743448536025,7.99459904,125.99,125.97,7.98979857]
[1743448536828,0.05659904,125.99,125.97,7.98979857]
[1743448537439,0.05659904,125.99,125.98,50.82776647]
[1743448537730,13.84936647,126.05,126.0,7.9366]
[1743448537931,13.84936647,126.05,126.0,21.78596647]
[1743448538324,7.9356,126.03,126.0,21.78596647]
[1743448538532,13.84936647,126.05,126.0,21.78596647]
[1743448538732,13.84936647,126.04,125.99,13.84936647]
[1743448538931,13.90206401,126.04,126.01,0.05944598]
[1743448540531,7.9358,126.02,126.01,0.05944598]
[1743448540931,21.78516647,126.02,126.01,0.05944598]
[1743448541624,7.9385,125.98,125.96,42.88936647]
[1743448541827,7.9385,125.98,125.96,36.9794]
[1743448542835,7.99794214,125.98,125.96,37.03775265]
[1743448543527,0.05944214,125.98,125.97,7.939]
[1743448544132,0.05944214,125.98,125.96,50.88701912]
[1743448545531,0.05944214,125.98,125.97,7.939]
[1743448545734,0.05944214,125.98,125.96,13.90771912]
[1743448546031,7.99794214,125.98,125.96,13.90771912]
[1743448546532,7.99794214,125.98,125.96,21.84701912]
[1743448548827,7.939,125.97,125.96,0.05835265]
[1743448561045,7.939,125.97,125.96,13.90771912]
[1743448561237,0.05944214,125.98,125.96,13.90771912]
[1743448561642,0.05944214,125.98,125.97,13.84936647]
[1743448562045,0.05944214,125.98,125.97,21.78836647]
[1743448562247,296.59675444,126.03,125.97,13.84936647]
[1743448562438,296.59675444,126.03,126.0,13.84936647]
[1743448562641,7.9367,126.01,126.0,13.84936647]
[1743448562838,10.99675444,126.04,125.99,13.84936647]
[1743448563144,7.9369,126.01,126.0,13.84936647]
[1743448563351,0.05728003,126.03,126.0,13.8997399]
[1743448563845,7.9364,126.02,126.0,13.8997399]
[1743448564659,7.9364,126.02,126.0,21.8367399]
[1743448564951,7.99268003,126.03,126.01,13.84936647]
[1743448565151,0.05728003,126.03,126.01,13.84936647]
[1743448565353,0.05728003,126.03,126.0,21.8366399]
[1743448565549,0.05728003,126.03,126.01,13.84936647]
[1743448565853,0.05728003,126.03,126.02,13.84936647]
[1743448566341,0.05728003,126.03,126.02,21.78516647]
[1743448568955,0.05728003,126.03,126.02,13.84936647]
[1743448569652,7.99248003,126.03,126.02,13.84936647]
[1743448569850,0.05728003,126.03,126.02,13.84936647]
[1743448570251,0.05728003,126.03,126.02,21.78516647]
[1743448570758,0.05728003,126.03,126.02,13.84936647]
[1743448571156,0.05728003,126.03,126.01,54.10906647]
[1743448571550,0.05728003,126.03,126.02,7.9358]
[1743448572157,7.933,126.07,126.04,7.9341]
[1743448572348,13.84936647,126.08,126.04,7.9341]
[1743448572552,7.9331,126.07,126.04,7.9341]
[1743448573260,13.84936647,126.05,125.94,648.66]
[1743448573555,13.84936647,126.03,125.98,13.84936647]
[1743448573857,13.84936647,126.07,126.02,21.78486647]
[1743448574056,13.84936647,126.07,126.02,7.9355]
[1743448574353,7.9339,126.05,126.02,36.9555]
[1743448574553,7.9339,126.05,126.03,0.05767074]
[1743448574750,0.05655477,126.06,126.03,0.05767074]
[1743448575055,7.99015477,126.06,126.03,7.99267074]
[1743448575555,0.05655477,126.06,126.03,13.90703721]
[1743448575857,13.90592124,126.06,126.03,0.05767074]
[1743448576058,7.9346,126.04,126.03,0.05767074]
[1743448578358,21.78396647,126.04,126.03,0.05767074]
[1743448581956,7.9343,126.05,126.03,0.05767074]
[1743448582260,13.90592124,126.06,126.03,0.05767074]
[1743448582962,7.9344,126.05,126.03,7.99257074]
[1743448584659,13.90592124,126.06,126.03,7.99257074]
[1743448585363,7.9342,126.05,126.03,7.99257074]
[1743448586758,7.9342,126.05,126.03,0.05767074]
[1743448586960,7.9346,126.04,126.03,0.05767074]
[1743448587666,7.9343,126.05,126.03,0.05767074]
[1743448589762,13.90592124,126.06,126.03,29.05767074]
[1743448589763,21.83952124,126.06,126.03,29.05767074]
[1743448589963,13.90592124,126.06,126.03,29.05767074]
[1743448590165,7.9346,126.04,126.03,29.05767074]
[1743448591166,7.9343,126.05,126.03,29.05767074]
[1743448591662,7.9343,126.05,126.03,36.99257074]
[1743448594476,7.9346,126.04,126.03,29.05767074]
[1743448594877,7.9346,126.04,126.03,0.05767074]
[1743448595073,21.78396647,126.04,126.03,0.05767074]
[1743448595675,13.84936647,126.04,125.96,13.84936647]
[1743448595875,0.05655477,126.06,125.95,6.4657]
[1743448595876,13.84936647,126.01,125.97,29.0]
[1743448596073,13.84936647,126.0,125.97,29.0]
[1743448596274,13.84936647,126.01,125.97,29.0]
[1743448596675,19.1919,126.06,126.0,7.9368]
[1743448596676,7.9355,126.03,126.0,7.9368]
[1743448596877,7.9355,126.03,126.0,29.0]
[1743448597177,7.99218807,126.03,126.0,29.0]
[1743448597774,7.99218807,126.03,126.01,7.9364]
[1743448598177,7.99218807,126.03,126.01,7.9870548]
[1743448598673,0.05668807,126.03,126.02,7.9358]
[1743448598874,0.05668807,126.03,126.01,0.0506548]
[1743448599378,7.99218807,126.03,126.01,7.9868548]
[1743448600580,13.84936647,126.02,125.96,29.0]
[1743448600878,13.84936647,125.99,125.95,6.4657]
[1743448601080,13.84936647,125.98,125.95,6.4657]
[1743448601573,21.78826647,125.98,125.95,35.4657]
[1743448601778,21.84838402,125.98,125.95,35.52044178]
[1743448602382,7.9391,125.97,125.95,35.52044178]
[1743448602682,13.90948402,125.98,125.95,35.52044178]
[1743448602877,7.9393,125.97,125.95,35.52044178]
[1743448603581,13.90948402,125.98,125.95,35.52044178]
[1743448603777,13.90948402,125.98,125.95,0.05474178]
[1743448605283,13.84936647,125.96,125.95,0.05474178]
[1743448605477,21.78896647,125.96,125.95,0.05474178]
[1743448605678,21.78896647,125.96,125.95,4.178e-05]
[1743448608281,13.84936647,125.96,125.9,35.349]
[1743448608585,13.84936647,125.93,125.9,35.349]
[1743448608879,7.9425,125.92,125.9,32.1561]
[1743448609086,13.84936647,125.93,125.9,32.1561]
[1743448609475,7.9428,125.91,125.9,32.21211322]
[1743448609678,13.90940029,125.93,125.9,32.21211322]
[1743448609886,13.90940029,125.93,125.9,0.05601322]
[1743448610086,7.9426,125.92,125.9,0.05601322]
[1743448610381,13.84936647,125.92,125.9,0.05601322]
[1743448610683,7.9428,125.91,125.9,0.05601322]
[1743448610887,13.84936647,125.92,125.9,0.05601322]
[1743448611081,0.06003382,125.93,125.9,29.05601322]
[1743448612986,8.00163382,125.93,125.91,7.9424]
[1743448613782,0.06003382,125.93,125.91,7.9424]
[1743448614488,8.00163382,125.93,125.91,7.9424]
[1743448615284,0.06003382,125.93,125.91,7.9424]
[1743448615582,0.06003382,125.93,125.9,29.05601322]
[1743448615583,0.06003382,125.93,125.92,7.9421]
[1743448615886,8.00163382,125.93,125.9,42.90537969]
[1743448616088,8.00163382,125.93,125.91,7.9425]
[1743448617888,7.9421,125.92,125.9,36.99921322]
[1743448618084,7.9421,125.92,125.9,29.05601322]
[1743448618583,7.9428,125.91,125.9,29.05601322]
[1743448618791,21.79216647,125.91,125.9,0.05601322]
[1743448618985,13.84936647,125.91,125.86,29.02]
[1743448619288,7.9452,125.88,125.86,29.02]
[1743448619489,13.84936647,125.89,125.85,29.02]
[1743448619790,7.9452,125.88,125.85,36.9662]
[1743448619991,13.84936647,125.89,125.85,29.02]
[1743448620190,8.00096754,125.88,125.86,7.9455]
[1743448620393,0.05626754,125.88,125.85,0.05388854]
[1743448620586,0.05626754,125.88,125.86,29.02]
[1743448620791,0.05626754,125.88,125.86,36.9654]
[1743448621194,293.93954149,125.95,125.87,13.84936647]
[1743448621195,322.95954149,125.95,125.87,13.84936647]
[1743448621394,7.9431,125.91,125.87,13.84936647]
[1743448621995,7.9431,125.91,125.88,7.9442]
[1743448622196,7.9434,125.9,125.89,29.02]
[1743448623389,0.05905791,125.91,125.89,29.02]
[1743448623995,0.05905791,125.91,125.9,7.9434]
[1743448624493,0.05905791,125.91,125.89,29.02]
[1743448624799,0.05905791,125.91,125.88,0.05752994]
[1743448624800,13.84936647,125.9,125.88,0.05752994]
[1743448625397,13.90842438,125.91,125.88,0.05752994]
[1743448625593,0.05905791,125.91,125.88,13.90689641]
[1743448625794,0.05905791,125.91,125.89,7.944]
[1743448626499,0.05905791,125.91,125.88,17.07289641]
[1743448627000,0.05905791,125.91,125.9,21.79276647]
[1743448627198,0.05905791,125.91,125.9,36.9634]
[1743448627397,0.05905791,125.91,125.9,29.02]
[1743448628895,0.05905791,125.91,125.9,36.9634]
[1743448632104,0.05905791,125.91,125.9,29.02]
[1743448632298,0.05905791,125.91,125.88,32.24352994]
[1743448632498,0.05905791,125.91,125.89,13.84936647]
[1743448632804,0.05905791,125.91,125.89,21.79296647]
[1743448634599,8.00215791,125.91,125.89,7.9436]
[1743448635206,8.00215791,125.91,125.88,54.03719641]
[1743448635598,8.00215791,125.91,125.88,46.09289641]
[1743448635800,8.00215791,125.91,125.89,7.9437]
[1743448636309,0.05905791,125.91,125.88,29.07752994]
[1743448637014,8.00205791,125.91,125.89,7.9439]
[1743448638006,7.9434,125.9,125.88,37.02182994]
[1743448638207,0.05905791,125.91,125.88,29.07752994]
[1743448638611,8.00215791,125.91,125.89,7.9438]
[1743448639006,0.05905791,125.91,125.88,29.07752994]
[1743448639409,7.9434,125.9,125.88,37.02192994]
[1743448640110,8.00215791,125.91,125.89,7.944]
[1743448640905,7.9434,125.9,125.88,37.02182994]
[1743448641112,0.05905791,125.91,125.88,29.07752994]
[1743448641603,8.00205791,125.91,125.89,7.9438]
[1743448642008,8.00205791,125.91,125.88,37.02182994]
[1743448642210,7.9435,125.9,125.88,50.87119641]
[1743448642412,0.05905791,125.91,125.88,50.87119641]
[1743448642605,8.00225791,125.91,125.88,50.87119641]
[1743448642809,0.05905791,125.91,125.88,0.05752994]
[1743448643012,13.84936647,125.9,125.88,0.05752994]
[1743448643215,7.944,125.89,125.88,0.05752994]
[1743448643512,13.84936647,125.89,125.84,29.0]
[1743448643712,7.9466,125.85,125.84,29.0]
[1743448643903,13.84936647,125.86,125.81,13.84936647]
[1743448644103,13.84936647,125.86,125.82,29.0]
[1743448644303,7.9478,125.84,125.82,29.0]
[1743448644508,7.9478,125.84,125.83,0.05398631]
[1743448644709,8.00428839,125.85,125.83,0.05398631]
[1743448645111,0.05718839,125.85,125.83,0.05398631]
[1743448645313,333.47220796,125.84,125.67,595.64944782]
[1743448645612,13.84936647,125.8,125.76,1.40853467]
[1743448646008,13.84936647,125.78,125.74,273.81735031]
[1743448646416,7.9522,125.76,125.74,273.81735031]
[1743448646714,13.90179302,125.78,125.75,252.48868051]
[1743448647011,13.90179302,125.78,125.75,0.05666481]
[1743448647218,13.90179302,125.78,125.75,1.46478905]
[1743448647515,13.84936647,125.77,125.75,1.46478905]
[1743448647715,0.05242655,125.78,125.75,1.46478905]
[1743448648311,7.9522,125.76,125.75,0.05666481]
[1743448648610,21.72348394,125.77,125.7,3.2781]
[1743448648807,7.9553,125.72,125.71,1.40938023]
[1743448649011,21.72348394,125.73,125.71,1.40938023]
[1743448649314,29.67758394,125.73,125.72,1.40938023]
[1743448649523,21.72348394,125.73,125.69,1.40995891]
[1743448649709,53.87048394,125.77,125.7,29.02]
[1743448650014,7.9532,125.75,125.71,1.41000561]
[1743448650211,0.05023089,125.75,125.71,1.41000561]
[1743448650517,0.05023089,125.75,125.72,0.05558415]
[1743448650712,0.05023089,125.75,125.73,29.02]
[1743448651412,0.05023089,125.75,125.72,0.05558415]
[1743448651611,21.77371483,125.75,125.72,0.05558415]
[1743448651814,21.77371483,125.75,125.72,1.46445316]
[1743448652016,21.77371483,125.75,125.72,0.05558415]
[1743448652216,29.72661483,125.75,125.72,0.05558415]
[1743448652412,0.05023089,125.75,125.72,0.05558415]
[1743448652813,0.05023089,125.75,125.72,1.46473995]
[1743448654509,8.00333089,125.75,125.72,1.46473995]
[1743448654911,8.00333089,125.75,125.72,0.05558415]
[1743448657521,0.05023089,125.75,125.72,0.05558415]
[1743448658222,0.05023089,125.75,125.72,1.46464733]
[1743448658819,0.05023089,125.75,125.72,0.05558415]
[1743448660825,0.05023089,125.75,125.72,1.46288481]
[1743448661019,0.05023089,125.75,125.72,0.05558415]
[1743448661226,0.05023089,125.75,125.72,8.01008415]
[1743448661424,0.05023089,125.75,125.73,1.40730066]
[1743448661626,0.05023089,125.75,125.73,9.36110066]
[1743448661826,0.05023089,125.75,125.74,1.40730066]
[1743448662522,0.05023089,125.75,125.74,1.40842429]
[1743448662729,0.05023089,125.75,125.74,9.36192429]
[1743448662928,0.05023089,125.75,125.74,7.9535]
[1743448663428,0.05023089,125.75,125.74,9.36273597]
[1743448663727,21.72348394,125.79,125.75,7.9528]
[1743448664129,21.72348394,125.79,125.73,29.04]
[1743448664622,7.9522,125.77,125.73,36.994]
[1743448664930,0.0537299,125.76,125.74,0.05954536]
[1743448665120,0.0537299,125.76,125.74,8.01304536]
[1743448665329,0.0537299,125.76,125.75,1.40861798]
[1743448665527,0.0537299,125.76,125.74,8.01304536]
[1743448665928,0.0537299,125.76,125.74,0.05954536]
[1743448666433,0.0537299,125.76,125.74,8.01274536]
[1743448666630,0.0537299,125.76,125.75,1.40836324]
[1743448667433,0.0537299,125.76,125.74,8.01274536]
[1743448668334,0.0537299,125.76,125.75,7.9529]
[1743448668934,0.0537299,125.76,125.75,9.36043778]
[1743448669134,0.0537299,125.76,125.75,7.9529]
[1743448671036,0.0537299,125.76,125.75,9.36016029]
[1743448672835,0.0537299,125.76,125.75,9.36049916]
[1743448675140,8.0059299,125.76,125.74,8.01254536]
[1743448675346,8.0059299,125.76,125.74,0.05954536]
[1743448675744,0.0537299,125.76,125.74,0.05954536]
[1743448676148,0.0537299,125.76,125.74,1.46680393]
[1743448676542,13.95599713,125.76,125.74,1.46680393]
[1743448676848,13.90226723,125.75,125.74,0.05954536]
[1743448677447,7.9529,125.75,125.74,0.05954536]
[1743448677640,13.95599713,125.76,125.74,0.05954536]
[1743448677641,0.0537299,125.76,125.74,0.05954536]
[1743448678148,0.0537299,125.76,125.74,37.05244536]
[1743448678444,0.0537299,125.76,125.75,1.40790119]
[1743448679042,0.0537299,125.76,125.74,37.05244536]
[1743448679242,8.0060299,125.76,125.74,37.05244536]
[1743448679945,8.0060299,125.76,125.75,1.40742069]
[1743448680737,8.0060299,125.76,125.74,29.09954536]
[1743448681341,8.0060299,125.76,125.74,37.05294536]
[1743448683845,0.0537299,125.76,125.75,7.9529]
[1743448684050,13.90226723,125.8,125.75,13.90226723]
[1743448684350,7.9507,125.79,125.77,7.9513]
[1743448684548,13.90226723,125.82,125.77,42.94226723]
[1743448684851,13.90226723,125.82,125.78,21.85326723]
[1743448684852,88.40404052,125.79,125.78,21.85326723]
[1743448685244,88.40404052,125.79,125.78,7.951]
[1743448685950,88.40404052,125.79,125.77,50.94943909]
[1743448686649,88.40404052,125.79,125.78,7.951]
[1743448686950,88.40404052,125.79,125.78,21.85326723]
[1743448687150,83.41504052,125.79,125.78,21.85326723]
[1743448687653,83.41504052,125.79,125.78,23.25969016]
[1743448689049,7.9503,125.79,125.78,13.90226723]
[1743448689243,7.9503,125.79,125.78,15.30869291]
[1743448690454,7.9503,125.79,125.78,1.40642568]
[1743448690753,8.00223108,125.8,125.78,1.40642568]
[1743448691146,8.00223108,125.8,125.78,9.35742568]
[1743448691354,8.00223108,125.8,125.78,7.951]
[1743448691955,8.00223108,125.8,125.77,50.94933909]
[1743448692254,8.00223108,125.8,125.78,1.40697865]
[1743448692753,8.00223108,125.8,125.78,7.9506]
[1743448693251,0.05213108,125.8,125.77,0.05577186]
[1743448693451,13.95439831,125.8,125.77,0.05577186]
[1743448693651,4.57044145,125.79,125.77,0.05577186]
[1743448694455,4.57044145,125.78,125.77,0.05577186]
[1743448694651,12.52144145,125.78,125.77,0.05577186]
[1743448694850,4.57044145,125.78,125.77,0.05577186]
[1743448695358,4.57044145,125.78,125.77,1.46315212]
[1743448695757,4.57044145,125.78,125.77,8.00737186]
[1743448696257,7.9509,125.79,125.77,0.05577186]
[1743448696454,7.9509,125.79,125.77,1.46356338]
[1743448697253,7.9509,125.79,125.77,0.05577186]
[1743448697458,7.9509,125.79,125.77,1.46331816]
[1743448697649,7.9509,125.79,125.77,0.05577186]
[1743448697853,21.90449831,125.8,125.77,8.00727186]
[1743448698158,0.05213108,125.8,125.77,8.00727186]
[1743448698359,12.52125695,125.79,125.77,8.00727186]
[1743448698657,4.57085695,125.79,125.77,0.05577186]
[1743448698856,0.05213108,125.8,125.77,1.46299597]
[1743448699161,0.05213108,125.8,125.78,7.951]
[1743448699659,0.05213108,125.8,125.78,7.9507]
[1743448700459,4.57174253,125.79,125.78,7.9507]
[1743448702358,0.05213108,125.8,125.79,7.9503]
[1743448703057,0.05213108,125.8,125.78,21.85286723]
[1743448703262,0.05213108,125.8,125.78,7.9506]
[1743448704059,0.05213108,125.8,125.77,37.02717186]
[1743448704462,0.05213108,125.8,125.78,7.9509]
[1743448704764,0.05213108,125.8,125.77,42.97803909]
[1743448705766,0.05213108,125.8,125.79,7.9503]
[1743448705963,0.05213108,125.8,125.77,42.97803909]
[1743448707062,4.57402306,125.79,125.77,42.97803909]
[1743448707266,12.52472306,125.79,125.77,50.92933909]
[1743448707859,7.9507,125.79,125.77,50.92933909]
[1743448708466,8.00223108,125.8,125.77,50.92933909]
[1743448708664,8.00223108,125.8,125.78,7.9509]
[1743448708864,4.57424354,125.79,125.78,7.9509]
[1743448710364,8.00223108,125.8,125.78,7.9509]
[1743448710365,0.05213108,125.8,125.78,7.9509]
[1743448710562,59.28993357,125.86,125.79,13.90226723]
[1743448710864,7.947,125.85,125.81,13.90226723]
[1743448711065,7.947,125.85,125.83,7.9478]
[1743448711563,7.9473,125.84,125.82,13.90226723]
[1743448711763,0.06060217,125.85,125.83,0.0536257]
[1743448712166,7.9472,125.84,125.83,0.0536257]
[1743448712669,8.00760217,125.85,125.83,0.0536257]
[1743448712873,8.00760217,125.85,125.83,8.0013257]
[1743448713166,8.00760217,125.85,125.83,0.0536257]
[1743448713167,0.06060217,125.85,125.83,0.0536257]
[1743448713363,7.9472,125.84,125.83,0.0536257]
[1743448717168,8.00730217,125.85,125.83,0.0536257]
[1743448717470,0.06060217,125.85,125.83,8.0011257]
[1743448719165,8.00720217,125.85,125.83,8.0011257]
[1743448719672,0.06060217,125.85,125.83,8.0011257]
[1743448720473,8.00720217,125.85,125.83,0.0536257]
[1743448721268,8.00720217,125.85,125.83,8.0011257]
[1743448722173,8.00720217,125.85,125.83,0.0536257]
[1743448722373,7.9472,125.84,125.83,0.0536257]
[1743448724766,0.06060217,125.85,125.83,0.0536257]
[1743448725479,0.06060217,125.85,125.83,8.0011257]
[1743448725672,0.06060217,125.85,125.83,0.0536257]
[1743448726277,0.06060217,125.85,125.84,13.90226723]
[1743448728077,8.00720217,125.85,125.84,13.90226723]
[1743448729579,0.06060217,125.85,125.84,21.84946723]
[1743448731678,0.06060217,125.85,125.84,13.90226723]
[1743448732482,8.00720217,125.85,125.84,13.90226723]
[1743448732678,0.06060217,125.85,125.84,13.90226723]
[1743448733577,0.06060217,125.85,125.83,0.0536257]
[1743448734183,7.9472,125.84,125.83,0.0536257]
[1743448735284,8.00750217,125.85,125.83,0.0536257]
[1743448736884,8.00750217,125.85,125.83,8.0014257]
[1743448738591,8.00750217,125.85,125.83,0.0536257]
[1743448738592,7.9472,125.84,125.83,0.0536257]
[1743448741785,7.9496,125.81,125.79,29.0]